{"text_format":"1","workbook":"xlsx","n_sheets":2,"sheets":["Product suppliers","Free form entry"],"not_rendered":{"charts":0,"images":2,"macros":1,"external_links":0,"defined_names":1,"comments":0,"pivot_tables":0},"unopened":[],"bounds":{"document_bytes":16777216,"sheet_cells":100000,"rows_first":2000,"rows_last":500,"rows_between":2000,"halvings":0,"cell_chars":16384,"cell_head_chars":4096},"cells_cut":0,"cells_raw":0,"read":"whole","date_system":"1900"}

{"sheet":"Product suppliers","index":0,"n_rows":119,"n_cols":8,"rows_kept":119,"cut":false,"hidden":false,"merged":[[5,3,5,8],[39,3,39,8],[37,3,37,8],[9,5,9,7],[10,5,10,6],[23,5,23,7],[24,5,24,6],[73,5,73,6],[86,5,86,6],[100,5,100,6],[113,5,113,6],[45,5,45,6],[59,5,59,6]]}
[]
[null,"Cost for suppliers of products containing button or coin cell batteries"]
[]
[]
[null,null,"Secure battery compartment requirement costs"]
[]
[]
[null,null,null,"Fixed (one-off) costs"]
[null,null,null,null,"For example: re-tooling machinery, design costs, product testing"]
[]
[null,null,null,null,null,"Use if relevant"]
[null,null,null,null,"Description of fixed (one-off) cost","Cost per SKU","SKUs affected","Total cost"]
[null,null,null,null,null,null,null,{"$f":"FixedProductLine[[#This Row],[Cost per SKU]]*FixedProductLine[[#This Row],[SKUs affected]]","v":0}]
[null,null,null,null,null,null,null,{"$f":"FixedProductLine[[#This Row],[Cost per SKU]]*FixedProductLine[[#This Row],[SKUs affected]]","v":0}]
[null,null,null,null,null,null,null,{"$f":"FixedProductLine[[#This Row],[Cost per SKU]]*FixedProductLine[[#This Row],[SKUs affected]]","v":0}]
[null,null,null,null,null,null,null,{"$f":"FixedProductLine[[#This Row],[Cost per SKU]]*FixedProductLine[[#This Row],[SKUs affected]]","v":0}]
[]
[]
[]
[]
[]
[null,null,null,"Variable (ongoing) costs"]
[null,null,null,null,"For example: increased materials costs"]
[]
[null,null,null,null,null,"Use if relevant"]
[null,null,null,null,"Description of variable (ongoing) cost","Cost per unit","Units per year","Total cost per year"]
[null,null,null,null,null,null,null,{"$f":"VariablePerUnit[[#This Row],[Cost per unit]]*VariablePerUnit[[#This Row],[Units per year]]","v":0}]
[null,null,null,null,null,null,null,{"$f":"VariablePerUnit[[#This Row],[Cost per unit]]*VariablePerUnit[[#This Row],[Units per year]]","v":0}]
[null,null,null,null,null,null,null,{"$f":"VariablePerUnit[[#This Row],[Cost per unit]]*VariablePerUnit[[#This Row],[Units per year]]","v":0}]
[null,null,null,null,null,null,null,{"$f":"VariablePerUnit[[#This Row],[Cost per unit]]*VariablePerUnit[[#This Row],[Units per year]]","v":0}]
[]
[]
[]
[]
[]
[]
[null,null,"Warning requirement costs"]
[]
[null,null,null,"Table 1: scope of warnings requirements for products containing button or coin cell batteries"]
[]
[null,null,"On-product warnings"]
[]
[null,null,null,"Fixed (one-off) costs"]
[null,null,null,null,"*Required only for products containing lithium coin cell batteries. May be a sticker but must be durable for the life of the product"]
[]
[null,null,null,null,null,"Use if relevant"]
[null,null,null,null,"Description of fixed (one-off) cost","Cost per SKU","SKUs affected","Total cost"]
[null,null,null,null,null,null,null,{"$f":"FixedProductLineWarnings_Product[[#This Row],[Cost per SKU]]*FixedProductLineWarnings_Product[[#This Row],[SKUs affected]]","v":0}]
[null,null,null,null,null,null,null,{"$f":"FixedProductLineWarnings_Product[[#This Row],[Cost per SKU]]*FixedProductLineWarnings_Product[[#This Row],[SKUs affected]]","v":0}]
[null,null,null,null,null,null,null,{"$f":"FixedProductLineWarnings_Product[[#This Row],[Cost per SKU]]*FixedProductLineWarnings_Product[[#This Row],[SKUs affected]]","v":0}]
[null,null,null,null,null,null,null,{"$f":"FixedProductLineWarnings_Product[[#This Row],[Cost per SKU]]*FixedProductLineWarnings_Product[[#This Row],[SKUs affected]]","v":0}]
[null,null,null,null,null,null,null,{"$f":"FixedProductLineWarnings_Product[[#This Row],[Cost per SKU]]*FixedProductLineWarnings_Product[[#This Row],[SKUs affected]]","v":0}]
[]
[]
[]
[]
[]
[null,null,null,"Variable (ongoing) costs"]
[]
[null,null,null,null,null,"Use if relevant"]
[null,null,null,null,"Description of variable (ongoing) cost","Cost per unit","Units per year","Total cost per year"]
[null,null,null,null,null,null,null,{"$f":"VariablePerUnitWarnings_Product[[#This Row],[Cost per unit]]*VariablePerUnitWarnings_Product[[#This Row],[Units per year]]","v":0}]
[null,null,null,null,null,null,null,{"$f":"VariablePerUnitWarnings_Product[[#This Row],[Cost per unit]]*VariablePerUnitWarnings_Product[[#This Row],[Units per year]]","v":0}]
[null,null,null,null,null,null,null,{"$f":"VariablePerUnitWarnings_Product[[#This Row],[Cost per unit]]*VariablePerUnitWarnings_Product[[#This Row],[Units per year]]","v":0}]
[null,null,null,null,null,null,null,{"$f":"VariablePerUnitWarnings_Product[[#This Row],[Cost per unit]]*VariablePerUnitWarnings_Product[[#This Row],[Units per year]]","v":0}]
[]
[]
[]
[]
[null,null,"Packaging and instructions warnings"]
[]
[null,null,null,"Fixed (one-off) costs"]
[]
[null,null,null,null,null,"Use if relevant"]
[null,null,null,null,"Description of fixed (one-off) cost","Cost per SKU","SKUs affected","Total cost"]
[null,null,null,null,null,null,null,{"$f":"FixedProductLineWarnings_Packaging[[#This Row],[Cost per SKU]]*FixedProductLineWarnings_Packaging[[#This Row],[SKUs affected]]","v":0}]
[null,null,null,null,null,null,null,{"$f":"FixedProductLineWarnings_Packaging[[#This Row],[Cost per SKU]]*FixedProductLineWarnings_Packaging[[#This Row],[SKUs affected]]","v":0}]
[null,null,null,null,null,null,null,{"$f":"FixedProductLineWarnings_Packaging[[#This Row],[Cost per SKU]]*FixedProductLineWarnings_Packaging[[#This Row],[SKUs affected]]","v":0}]
[null,null,null,null,null,null,null,{"$f":"FixedProductLineWarnings_Packaging[[#This Row],[Cost per SKU]]*FixedProductLineWarnings_Packaging[[#This Row],[SKUs affected]]","v":0}]
[]
[]
[]
[]
[]
[null,null,null,"Variable (ongoing) costs"]
[]
[null,null,null,null,null,"Use if relevant"]
[null,null,null,null,"Description of variable (ongoing) cost","Cost per unit","Units per year","Total cost per year"]
[null,null,null,null,null,null,null,{"$f":"VariablePerUnitWarnings_Packaging[[#This Row],[Cost per unit]]*VariablePerUnitWarnings_Packaging[[#This Row],[Units per year]]","v":0}]
[null,null,null,null,null,null,null,{"$f":"VariablePerUnitWarnings_Packaging[[#This Row],[Cost per unit]]*VariablePerUnitWarnings_Packaging[[#This Row],[Units per year]]","v":0}]
[null,null,null,null,null,null,null,{"$f":"VariablePerUnitWarnings_Packaging[[#This Row],[Cost per unit]]*VariablePerUnitWarnings_Packaging[[#This Row],[Units per year]]","v":0}]
[null,null,null,null,null,null,null,{"$f":"VariablePerUnitWarnings_Packaging[[#This Row],[Cost per unit]]*VariablePerUnitWarnings_Packaging[[#This Row],[Units per year]]","v":0}]
[]
[]
[]
[]
[null,null,"Unpackaged products warnings"]
[]
[null,null,null,"Fixed (one-off) costs"]
[]
[null,null,null,null,null,"Use if relevant"]
[null,null,null,null,"Description of fixed (one-off) cost","Cost per SKU","SKUs affected","Total cost"]
[null,null,null,null,null,null,null,{"$f":"FixedProductLineWarnings_BricksMortar[[#This Row],[Cost per SKU]]*FixedProductLineWarnings_BricksMortar[[#This Row],[SKUs affected]]","v":0}]
[null,null,null,null,null,null,null,{"$f":"FixedProductLineWarnings_BricksMortar[[#This Row],[Cost per SKU]]*FixedProductLineWarnings_BricksMortar[[#This Row],[SKUs affected]]","v":0}]
[null,null,null,null,null,null,null,{"$f":"FixedProductLineWarnings_BricksMortar[[#This Row],[Cost per SKU]]*FixedProductLineWarnings_BricksMortar[[#This Row],[SKUs affected]]","v":0}]
[null,null,null,null,null,null,null,{"$f":"FixedProductLineWarnings_BricksMortar[[#This Row],[Cost per SKU]]*FixedProductLineWarnings_BricksMortar[[#This Row],[SKUs affected]]","v":0}]
[]
[]
[]
[]
[]
[null,null,null,"Variable (ongoing) costs"]
[]
[null,null,null,null,null,"Use if relevant"]
[null,null,null,null,"Description of variable (ongoing) cost","Cost per unit","Units per year","Total cost per year"]
[null,null,null,null,null,null,null,{"$f":"VariablePerUnitWarnings_BricksMortar[[#This Row],[Cost per unit]]*VariablePerUnitWarnings_BricksMortar[[#This Row],[Units per year]]","v":0}]
[null,null,null,null,null,null,null,{"$f":"VariablePerUnitWarnings_BricksMortar[[#This Row],[Cost per unit]]*VariablePerUnitWarnings_BricksMortar[[#This Row],[Units per year]]","v":0}]
[null,null,null,null,null,null,null,{"$f":"VariablePerUnitWarnings_BricksMortar[[#This Row],[Cost per unit]]*VariablePerUnitWarnings_BricksMortar[[#This Row],[Units per year]]","v":0}]
[null,null,null,null,null,null,null,{"$f":"VariablePerUnitWarnings_BricksMortar[[#This Row],[Cost per unit]]*VariablePerUnitWarnings_BricksMortar[[#This Row],[Units per year]]","v":0}]

{"sheet":"Free form entry","index":1,"n_rows":2,"n_cols":2,"rows_kept":2,"cut":false,"hidden":false,"merged":[]}
[]
[null,"If it is more convenient to provide cost details in another format, please enter costs details in this sheet. Add other sheets if necessary. "]